bitfinex-derivatives/quotes_ETHF0:USTF0_20250427
["timestamp","ask_amount","ask_price","bid_price","bid_amount"]
[1745714898120,5.3261,1846.2,1846.1,1.08301]
[1745714900129,3.722,1846.2,1846.1,1.08301]
[1745714900626,0.7714,1846.2,1846.1,7.62551]
[1745714901326,1.7023,1846.7,1846.6,1.08272]
[1745714901721,4.059,1846.8,1846.7,1.08266]
[1745714901928,5.7613,1846.8,1846.7,1.08266]
[1745714902131,9.4833,1846.8,1846.7,1.08266]
[1745714903421,3.722,1846.8,1846.7,1.08266]
[1745714903622,3.722,1846.8,1846.6,1.08268]
[1745714903921,2.75226,1846.7,1846.5,3.2078]
[1745714904121,5.3916,1846.7,1846.5,3.2078]
[1745714904422,1.08274,1846.6,1846.4,1.64]
[1745714904621,1.08274,1846.6,1846.3,3.2078]
[1745714904622,1.6696,1846.5,1846.3,3.2078]
[1745714904927,3.722,1846.7,1846.3,3.2078]
[1745714905224,5.7286,1847.0,1846.9,1.08254]
[1745714905429,3.2078,1847.1,1847.0,1.08249]
[1745714906127,6.9298,1847.1,1847.0,1.08249]
[1745714906923,3.722,1847.1,1847.0,1.08249]
[1745714907128,3.2078,1847.5,1847.4,1.08225]
[1745714907328,4.7913,1847.5,1847.4,1.08225]
[1745714907827,4.7913,1847.5,1847.3,1.08229]
[1745714908232,8.5133,1847.5,1847.3,1.08229]
[1745714908823,9.59549,1847.5,1847.2,1.08233]
[1745714909023,8.5133,1847.5,1847.0,4.40735]
[1745714909223,8.5133,1847.5,1847.0,3.3249]
[1745714909428,9.59552,1847.5,1847.1,1.08237]
[1745714909628,9.59552,1847.5,1847.2,1.707]
[1745714910126,9.59552,1847.5,1847.2,2.78936]
[1745714910332,8.5133,1847.5,1847.3,1.08228]
[1745714910532,8.5133,1847.5,1847.2,1.707]
[1745714910730,1.08252,1847.0,1846.6,3.2078]
[1745714911033,4.29027,1847.1,1846.8,1.0826]
[1745714911235,5.401,1847.0,1846.8,1.0826]
[1745714911428,5.401,1847.0,1846.9,1.707]
[1745714911631,6.48349,1847.0,1846.9,1.707]
[1745714911826,1.08254,1846.9,1846.6,2.70139]
[1745714912031,1.08266,1846.7,1846.6,3.3067]
[1745714912232,2.72885,1846.8,1846.6,3.3067]
[1745714912432,2.72885,1846.8,1846.6,4.38941]
[1745714912832,2.72885,1846.8,1846.6,3.3067]
[1745714913032,2.72885,1846.8,1846.6,4.38941]
[1745714913333,6.45085,1846.8,1846.6,4.38941]
[1745714913837,5.3682,1846.8,1846.6,4.38937]
[1745714914540,3.722,1846.8,1846.7,1.08266]
[1745714914836,3.722,1846.8,1846.7,2.78776]
[1745714915237,2.67247,1847.1,1846.8,1.08257]
[1745714915433,5.88027,1847.1,1846.9,1.7051]
[1745714915830,1.08249,1847.0,1846.9,1.7051]
[1745714916132,5.312,1847.0,1846.9,1.7051]
[1745714916728,5.312,1847.0,1846.9,2.78764]
[1745714917430,5.312,1847.0,1846.6,1.6187]
[1745714917732,1.0826,1846.9,1846.6,4.40651]
[1745714917936,1.6527,1846.8,1846.7,1.08266]
[1745714918137,5.3747,1846.8,1846.7,2.80466]
[1745714919632,6.4573,1846.8,1846.7,1.722]
[1745714920342,5.3747,1846.8,1846.7,2.80466]
[1745714920739,6.4573,1846.8,1846.7,2.80466]
[1745714921042,5.3747,1846.8,1846.7,2.80466]
[1745714921440,6.4573,1846.8,1846.7,1.722]
[1745714921638,5.3747,1846.8,1846.7,2.80466]
[1745714922337,5.3747,1846.8,1846.3,3.2078]
[1745714922537,5.91475,1846.5,1846.0,1.6564]
[1745714922748,3.2078,1846.2,1845.6,4.058]
[1745714922939,1.08325,1845.7,1845.6,1.6987]
[1745714923243,1.08325,1845.7,1845.5,1.08335]
[1745714923440,2.78271,1845.6,1845.4,2.7821]
[1745714923638,1.6994,1845.6,1845.0,10.50453235]
[1745714923843,1.08354,1845.2,1845.1,11.85883933]
[1745714924039,4.9072,1845.6,1845.1,7.02703933]
[1745714924040,7.2658,1845.4,1845.1,7.02703933]
[1745714924240,4.80554,1845.2,1845.1,7.02703933]
[1745714924544,8.01334,1845.2,1845.1,7.02703933]
[1745714925841,4.80554,1845.2,1845.1,7.02703933]
[1745714926539,8.01334,1845.2,1845.1,7.02703933]
[1745714927237,8.01334,1845.2,1844.9,14.11191455]
[1745714927238,8.01334,1845.2,1844.9,1.08371]
[1745714927439,1.7126,1845.1,1844.9,2.67421]
[1745714927843,1.70779092,1845.1,1844.9,2.67421]
[1745714928336,2.79139092,1845.1,1844.9,1.5905]
[1745714928535,1.08366,1845.0,1844.8,1.6771]
[1745714928736,3.2078,1845.2,1844.8,1.6771]
[1745714929037,1.08372,1844.9,1844.7,1.5905]
[1745714929439,4.2915,1845.0,1844.7,2.67433]
[1745714929642,3.2078,1845.0,1844.8,1.08377]
[1745714929837,3.2078,1845.0,1844.7,1.5905]
[1745714930044,1.08373,1844.9,1844.7,1.5905]
[1745714930545,3.2078,1845.3,1844.7,1.5905]
[1745714930746,1.0836,1845.2,1844.9,1.08368]
[1745714930949,1.08361,1845.1,1844.9,1.08368]
[1745714931246,1.5827,1845.0,1844.9,1.08368]
[1745714931547,1.08358,1845.2,1845.0,1.08363]
[1745714931847,2.66628,1845.2,1845.0,1.08365]
[1745714932442,1.5827,1845.2,1845.1,1.0836]
[1745714933241,3.2078,1845.3,1845.2,1.08354]
[1745714933441,4.057,1845.5,1845.4,1.08342]
[1745714933640,1.6868,1845.6,1845.4,1.08342]
[1745714933846,1.6868,1845.6,1845.5,1.589]
[1745714934344,6.49211,1845.6,1845.5,1.589]
[1745714934747,6.49211,1845.6,1845.3,1.08344]
[1745714934952,5.4088,1845.6,1845.3,1.08344]
[1745714935246,1.08337,1845.5,1845.3,1.08344]
[1745714935554,1.6868,1845.4,1845.3,1.08344]
[1745714936046,1.6868,1845.4,1845.1,1.589]
[1745714936348,5.4088,1845.4,1845.3,1.08348]
[1745714936847,3.722,1845.4,1845.3,1.08348]
[1745714937248,4.29111,1845.6,1845.4,1.0834]
[1745714937453,4.8282,1845.6,1845.5,1.6092]
[1745714937839,4.8282,1845.6,1845.5,2.69257]
[1745714938350,8.5502,1845.6,1845.5,2.69257]
[1745714938647,9.63351,1845.6,1845.5,1.6092]
[1745714939245,8.5502,1845.6,1845.5,2.69257]
[1745714939447,2.55552,1845.6,1845.5,10.90037]
[1745714939750,1.08294,1846.3,1845.5,9.817]
[1745714939751,2.81093,1846.1,1845.5,9.817]
[1745714939941,2.81093,1846.1,1845.9,1.08312]
[1745714939942,1.7279,1846.1,1845.9,1.08312]
[1745714940143,1.7279,1846.1,1846.0,1.08307]
[1745714940144,3.722,1846.1,1846.0,1.08307]
[1745714940550,3.722,1846.1,1846.0,6.08307]
[1745714941051,3.722,1846.1,1846.0,7.79267]
[1745714941248,3.2078,1846.4,1846.2,1.0829]
[1745714941447,3.2078,1846.4,1846.3,1.7096]
[1745714941850,3.2078,1846.4,1845.9,3.2078]
[1745714942052,4.9127,1846.4,1846.0,1.7127]
[1745714942254,1.08299,1846.2,1846.0,1.7127]
[1745714942452,1.7049,1846.1,1846.0,2.79577]
[1745714943357,1.7049,1846.1,1846.0,1.7127]
[1745714943552,2.78794,1846.1,1845.9,1.08312]
[1745714943759,2.78794,1846.1,1845.9,2.79582]
[1745714944057,1.7049,1846.1,1846.0,1.08307]
[1745714944356,5.4269,1846.1,1846.0,2.79577]
[1745714944750,3.722,1846.1,1846.0,2.79577]
[1745714945262,3.2078,1846.4,1846.0,1.7127]
[1745714945557,3.2078,1846.4,1846.2,1.08291]
[1745714945856,4.9239,1846.4,1846.2,1.08291]
[1745714946061,4.9239,1846.4,1846.3,1.0829]
[1745714946255,8.6459,1846.4,1846.3,1.0829]
[1745714946758,8.6459,1846.4,1845.9,3.2078]
[1745714946960,8.6459,1846.4,1845.9,4.29091]
[1745714947159,3.2078,1846.1,1845.8,1.5946]
[1745714947455,4.37584,1846.3,1846.1,1.08301]
[1745714947751,1.7161,1846.2,1846.1,1.08301]
[1745714947957,6.9298,1846.4,1846.3,1.0829]
[1745714948158,3.2078,1846.4,1846.3,1.0829]
[1745714948851,4.8123,1846.4,1846.3,1.0829]
[1745714949056,8.5343,1846.4,1846.3,1.0829]
[1745714949360,8.5343,1846.4,1846.1,3.2022]
[1745714949554,1.0829,1846.3,1846.1,4.28519]
[1745714949755,1.6045,1846.2,1846.1,2.66109]
[1745714950455,1.6045,1846.2,1846.1,1.5781]
[1745714950656,1.6045,1846.2,1846.1,2.66111]
[1745714950858,1.6045,1846.2,1845.9,4.057]
[1745714950859,1.6045,1846.2,1845.8,4.8024]
[1745714951159,1.08309,1846.0,1845.8,7.46367]
[1745714951359,1.7179,1845.9,1845.8,4.25587]
[1745714951855,1.7179,1845.9,1845.8,3.1727]
[1745714952056,6.52307,1845.9,1845.3,6.76559]
[1745714952256,6.52307,1845.9,1845.7,1.08322]
[1745714952859,5.4399,1845.9,1845.8,1.08319]
[1745714953659,6.52303,1845.9,1845.7,1.08321]
[1745714953858,5.4399,1845.9,1845.6,1.6804]
[1745714954061,3.2078,1845.8,1845.7,1.08325]
[1745714954269,6.52306,1845.9,1845.7,1.08325]
[1745714954564,1.6325,1845.8,1845.7,1.08325]
[1745714955168,5.3545,1845.8,1845.7,1.08325]
[1745714955361,5.3545,1845.8,1845.6,1.6804]
[1745714955665,5.3545,1845.8,1845.7,1.08325]
[1745714955858,6.43769,1845.8,1845.6,2.76368]
[1745714956053,8.5623,1845.8,1845.6,1.6804]
[1745714956260,9.64551,1845.8,1845.6,2.7637]
[1745714956558,1.08337,1845.5,1845.4,3.2078]
[1745714956863,3.2078,1845.6,1845.1,4.42248]
[1745714957166,1.0835,1845.3,1845.1,4.42248]
[1745714957364,1.7333,1845.2,1844.9,1.6155]
[1745714957562,1.7333,1845.2,1844.9,3.2219]
[1745714957763,6.02467,1845.2,1845.0,1.08366]
[1745714957964,6.02467,1845.2,1844.9,4.30557]
[1745714958266,1.08366,1845.0,1844.9,1.6064]
[1745714958465,1.08364,1845.1,1844.9,2.69012]
[1745714958761,1.7333,1845.0,1844.7,1.6896]
[1745714958953,6.9298,1845.2,1844.8,1.6064]
[1745714959158,3.2078,1845.4,1844.9,3.2078]
[1745714959359,4.29124,1845.4,1845.2,1.08352]
[1745714959559,1.7333,1845.3,1845.2,1.08352]
[1745714960660,1.7333,1845.3,1845.1,1.08357]
[1745714960866,1.7333,1845.3,1845.1,1.08359]
[1745714961759,2.81679,1845.3,1845.1,1.08359]
[1745714961961,1.0837,1845.0,1844.8,5.958]
[1745714962262,3.722,1845.0,1844.9,1.08372]
[1745714962570,3.722,1845.0,1844.9,2.79472]
[1745714963267,5.7873,1845.3,1845.2,1.08354]
[1745714963467,5.6172,1845.6,1845.3,1.08345]
[1745714963668,5.6172,1845.6,1844.9,7.62801]
[1745714963669,2.63504,1845.4,1845.1,1.08355]
[1745714963868,2.63504,1845.4,1844.9,4.9188]
[1745714964064,1.5516,1845.4,1845.2,1.08353]
[1745714964270,2.63503,1845.4,1845.1,1.08356]
[1745714964466,1.5516,1845.4,1845.0,1.08364]
[1745714964763,1.08352,1845.3,1845.0,1.08364]
[1745714964963,1.5516,1845.2,1844.9,2.79468]
[1745714965174,1.5516,1845.2,1845.0,1.08364]
[1745714965372,1.5516,1845.2,1845.1,1.0836]
[1745714965672,1.08362,1845.1,1844.9,1.08371]
[1745714965869,1.5516,1845.0,1844.8,7.6011]
[1745714966071,1.5516,1845.0,1844.9,2.72682]
[1745714966366,1.5516,1845.0,1844.9,1.6431]
[1745714966572,2.63528,1845.0,1844.8,1.08373]
[1745714966773,1.5516,1845.0,1844.9,1.08372]
[1745714967264,5.2736,1845.0,1844.9,1.08372]
[1745714967569,5.2736,1845.0,1844.8,1.5694]
[1745714967780,8.4814,1845.0,1844.6,1.5694]
[1745714967960,1.08375,1844.9,1844.7,1.08382]
[1745714968165,1.6054,1844.8,1844.7,1.08382]
[1745714969063,3.722,1844.9,1844.7,1.08382]
[1745714969271,3.722,1844.9,1844.5,3.2078]
[1745714969272,4.8132,1845.0,1844.8,1.5694]
[1745714969466,1.6117,1844.9,1844.8,1.5694]
[1745714969668,1.6117,1844.9,1844.5,3.2078]
[1745714969977,1.6117,1844.9,1844.8,1.08378]
[1745714970275,1.0838,1844.8,1844.6,2.77275]
[1745714970474,1.6117,1844.7,1844.6,1.08385]
[1745714970778,2.69558,1844.7,1844.5,1.08394]
[1745714970966,3.722,1844.9,1844.8,1.08378]
[1745714971167,5.90319,1845.0,1844.8,1.08378]
[1745714971574,9.8195,1845.0,1844.4,3.2078]
[1745714971764,1.08383,1844.8,1844.6,1.08388]
[1745714971968,4.2915,1845.0,1844.8,1.08378]
[1745714972168,1.08372,1844.9,1844.8,1.08378]
[1745714972771,3.2078,1845.0,1844.8,1.08378]
[1745714972772,4.2915,1845.0,1844.8,1.08378]
[1745714972972,1.08372,1844.9,1844.8,1.08378]
[1745714973176,1.08372,1844.9,1844.7,1.08379]
[1745714973673,6.9298,1845.0,1844.6,1.08388]
[1745714974069,6.9298,1845.0,1844.7,1.08384]
[1745714974270,1.08373,1844.9,1844.5,1.6889]
[1745714974674,3.2078,1845.0,1844.6,1.08388]
[1745714974874,1.08384,1844.7,1844.5,2.77282]
[1745714975071,3.2078,1845.0,1844.3,3.199]
[1745714975072,5.91699,1845.0,1844.3,3.199]
[1745714975376,1.08415,1844.2,1844.0,4.29202]
[1745714975578,1.08415,1844.2,1844.0,2.68792]
[1745714976579,1.08427,1844.0,1843.8,5.90665]
[1745714976775,3.2078,1844.2,1843.8,6.426]
[1745714976987,1.08428,1844.0,1843.8,3.2078]
[1745714977279,3.722,1844.0,1843.9,1.08431]
[1745714977479,3.722,1844.0,1843.9,2.68801]
[1745714978171,4.29197,1844.2,1843.9,2.68801]
[1745714978474,1.08425,1844.0,1843.9,1.6037]
[1745714978674,3.2078,1844.2,1843.8,3.2078]
[1745714978873,3.2078,1844.0,1843.6,2.74946]
[1745714979183,1.08439,1843.8,1843.6,1.665]
[1745714979380,1.658,1843.9,1843.5,1.6464]
[1745714979571,3.2078,1843.7,1843.1,0.09440527]
[1745714979770,1.08456,1843.5,1843.2,1.665]
[1745714980175,8.34832,1843.6,1843.3,1.08464]
[1745714980484,1.08454,1843.5,1843.4,1.665]
[1745714981183,7.2638,1843.6,1842.9,1.6464]
[1745714981377,8.34829,1843.6,1843.4,1.08457]
[1745714981679,7.2638,1843.6,1843.3,1.08464]
[1745714981875,7.2638,1843.6,1843.2,2.71409]
[1745714981876,1.08459,1843.5,1843.2,2.71409]
[1745714982278,7.2638,1843.6,1843.3,1.08465]
[1745714982575,1.5984,1843.5,1843.3,1.08465]
[1745714983177,1.5984,1843.5,1843.4,1.0846]
[1745714983773,1.5984,1843.5,1843.3,1.08462]
[1745714983973,1.5984,1843.5,1843.4,1.0846]
[1745714984175,7.2638,1843.6,1843.2,1.6294]
[1745714984382,7.2638,1843.6,1843.5,1.08454]
[1745714984884,10.00812,1843.9,1843.6,1.08443]
[1745714985082,10.00812,1843.9,1843.7,1.0844]
[1745714985284,1.6081,1843.8,1843.7,1.0844]
[1745714986183,1.6081,1843.8,1843.4,3.3294]
[1745714986484,1.6081,1843.8,1843.7,1.08442]
[1745714986980,1.5542,1844.1,1843.7,1.08442]
[1745714986981,4.058,1844.3,1844.1,1.08418]
[1745714987177,1.6081,1844.2,1843.8,3.3798]
[1745714987378,4.8159,1844.2,1844.0,1.08422]
[1745714987578,4.8159,1844.2,1844.1,1.08419]
[1745714987784,5.90003,1844.2,1844.0,1.08423]
[1745714987986,4.8159,1844.2,1843.9,1.6959]
[1745714988285,4.8159,1844.2,1844.0,1.08421]
[1745714988482,4.8159,1844.2,1844.1,1.08419]
[1745714989184,1.6081,1844.2,1844.1,1.08419]
[1745714989579,4.058,1844.3,1844.1,1.08416]
[1745714989779,5.6284,1844.3,1844.2,1.08413]
[1745714990975,3.2078,1844.5,1844.4,1.08401]
[1745714991487,8.2078,1844.5,1843.9,12.3803]
[1745714991787,1.08412,1844.3,1843.9,9.1725]
[1745714991977,2.67084,1844.2,1843.9,3.2145]
[1745714992178,2.67084,1844.2,1843.9,4.29877]
[1745714992378,1.5867,1844.2,1843.9,4.29877]
[1745714992587,2.67083,1844.2,1843.9,4.29876]
[1745714992789,2.67083,1844.2,1843.9,3.2145]
[1745714992989,1.5867,1844.2,1844.0,1.08422]
[1745714993189,1.5867,1844.2,1844.0,1.636]
[1745714993393,1.5867,1844.2,1844.1,1.08419]
[1745714997592,1.5867,1844.2,1843.8,1.6839]
[1745714997796,3.1411,1844.2,1843.8,1.08435]
[1745714997992,3.2078,1844.0,1843.7,1.0844]
[1745714998183,2.65423,1843.9,1843.7,1.0844]
[1745714998385,2.65423,1843.9,1843.8,1.08436]
[1745714998689,2.65422,1843.9,1843.7,1.08439]
[1745714998882,2.65422,1843.9,1843.6,1.6275]
[1745714999079,1.5699,1843.9,1843.8,1.08436]
[1745715000192,1.5699,1843.9,1843.8,2.64006]
[1745715000388,7.2628,1844.0,1843.9,1.08431]
[1745715000584,3.2078,1844.0,1843.9,2.64001]
[1745715001087,4.29205,1844.0,1843.9,1.5557]
[1745715001287,4.29205,1844.0,1843.8,1.08433]
[1745715001491,4.29205,1844.0,1843.9,1.08431]
[1745715001692,3.2078,1844.0,1843.9,1.08431]
[1745715002594,1.08434,1843.9,1843.7,2.60538]
[1745715002783,3.2078,1844.0,1843.7,1.521]
[1745715003186,1.08431,1843.9,1843.7,2.60542]
[1745715003387,3.2078,1844.0,1843.5,3.2078]
[1745715003593,1.08452,1843.6,1843.4,5.92758]
[1745715003895,1.0845,1843.6,1843.4,2.71977]
[1745715004192,4.29226,1843.7,1843.5,1.08454]
[1745715004596,3.1406,1843.8,1843.4,1.6352]
[1745715004597,1.5377,1843.8,1843.4,1.6352]
[1745715004784,7.2628,1843.9,1843.8,1.08436]
[1745715005182,3.2078,1843.9,1843.8,1.08436]
[1745715006391,3.2078,1843.9,1843.8,2.77566]
[1745715007890,4.056,1844.3,1843.8,2.77566]
[1745715008085,4.056,1844.3,1844.1,1.08415]
[1745715008291,4.056,1844.3,1844.2,2.77543]
[1745715008506,4.8251,1844.5,1844.3,1.08406]
[1745715008800,3.2078,1844.5,1844.4,1.08401]
[1745715009593,3.2078,1844.5,1844.3,1.08403]
[1745715009795,1.08407,1844.3,1844.0,1.08423]
[1745715009995,1.08416,1844.2,1843.9,5.96898]
[1745715010190,3.2078,1844.3,1843.9,4.8847]
[1745715010396,3.2078,1844.3,1844.1,1.08417]
[1745715010691,3.2078,1844.3,1844.2,1.08413]
[1745715010899,3.2078,1844.3,1844.1,1.08416]
[1745715011092,3.2078,1844.3,1844.2,1.08413]
[1745715012189,3.2078,1844.5,1844.4,1.08396]
[1745715012598,4.7527,1844.5,1844.4,1.08396]
[1745715012991,4.7527,1844.5,1844.2,3.3069]
[1745715014201,4.7527,1844.5,1844.4,1.08401]
[1745715014498,3.2078,1844.5,1844.4,1.08401]
[1745715015793,3.2078,1845.2,1844.7,2.70957]
[1745715015994,1.6233,1845.1,1844.8,1.6194]
[1745715016296,1.6622,1845.3,1844.9,5.9171]
[1745715016501,17.51387399,1845.4,1845.3,1.08348]
[1745715017002,14.30607399,1845.4,1845.3,1.08348]
[1745715017893,14.30607399,1845.4,1845.3,2.63928]
[1745715019702,14.30607399,1845.4,1845.2,5.91071]
[1745715019901,2.6711,1845.5,1845.2,5.91071]
[1745715020102,1.08348,1845.3,1845.0,1.506]
[1745715020402,1.5877,1845.2,1845.0,1.08365]
[1745715020605,1.5877,1845.2,1845.1,1.0836]
[1745715020902,1.5877,1845.2,1845.0,2.77443]
[1745715022204,1.5877,1845.2,1845.1,1.0836]
[1745715022397,1.5877,1845.2,1845.0,1.6908]
[1745715022595,12.50442,1845.2,1844.5,3.2078]
[1745715022791,3.2078,1845.0,1844.6,4.29075]
[1745715023100,5.7426,1844.9,1844.7,1.0838]
[1745715023295,5.7426,1844.9,1844.7,2.7371]
[1745715023491,5.7426,1844.9,1844.8,1.08378]
[1745715024399,5.7426,1844.9,1844.7,2.73709]
[1745715024601,5.7426,1844.9,1844.8,1.08378]
[1745715024995,1.6916,1844.9,1844.8,1.08378]
[1745715025998,1.6916,1844.9,1844.7,1.6533]
[1745715025999,2.70314,1845.1,1844.9,1.08369]
[1745715026199,4.32554,1845.1,1844.9,1.08369]
[1745715026399,3.2419,1845.1,1844.8,1.08374]
[1745715026605,4.32553,1845.1,1844.9,1.08371]
[1745715027004,4.32553,1845.1,1844.8,1.08373]
[1745715027405,4.32553,1845.1,1844.9,1.08371]
[1745715028608,1.08366,1845.0,1844.8,1.08374]
[1745715028807,1.6935,1844.9,1844.8,1.08374]
[1745715029013,1.6935,1844.9,1844.7,1.6533]
[1745715029203,1.6935,1844.9,1844.8,1.08378]
[1745715034310,8.34237,1845.2,1844.7,4.8611]
[1745715034616,1.08364,1845.1,1844.9,1.08369]
[1745715034809,2.73294,1845.1,1844.9,1.08369]
[1745715035207,1.6493,1845.1,1845.0,1.08366]
[1745715035622,2.7329,1845.1,1844.9,2.64257]
[1745715035822,2.73293,1845.1,1844.9,2.6426]
[1745715036124,3.2078,1845.0,1844.6,1.5536]
[1745715036323,2.73984,1844.9,1844.7,2.65871]
[1745715036621,1.08384,1844.7,1844.5,3.2078]
[1745715036817,1.08384,1844.7,1844.5,4.7827]
[1745715037419,7.2588,1844.6,1844.1,4.29196]
[1745715037621,8.9149,1844.6,1844.1,4.7827]
[1745715037827,8.9149,1844.6,1844.2,2.65898]
[1745715038018,8.9149,1844.6,1844.2,1.5749]
[1745715038322,8.9149,1844.6,1844.3,1.08407]
[1745715038323,1.08399,1844.5,1844.3,1.08407]
[1745715038521,1.6561,1844.4,1844.3,1.08407]
[1745715039311,8.34272,1844.6,1844.4,1.08396]
[1745715039720,1.705,1844.5,1844.4,1.08396]
[1745715040424,2.78895,1844.5,1844.3,1.08404]
[1745715040619,2.78895,1844.5,1844.0,5.91837]
[1745715040620,1.08407,1844.3,1844.1,1.08417]
[1745715040814,1.705,1844.2,1844.1,1.08417]
[1745715041213,1.705,1844.2,1844.0,4.9033]
[1745715041624,2.78913,1844.2,1844.0,5.9875]
[1745715041924,2.78913,1844.2,1844.0,4.292]
[1745715042227,1.08439,1843.8,1843.6,1.09307]
[1745715042422,1.589,1843.7,1843.6,2.71147]
[1745715042621,1.08435,1843.9,1843.7,1.08439]
[1745715042918,1.08435,1843.9,1843.7,2.71139]
[1745715043726,1.589,1843.8,1843.7,2.71139]
[1745715044320,3.2078,1844.0,1843.9,1.08431]
[1745715044625,3.2078,1844.0,1843.7,1.627]
[1745715044626,1.08425,1844.0,1843.8,1.08432]
[1745715045022,1.589,1843.9,1843.8,1.08432]
[1745715045229,1.589,1843.9,1843.7,1.627]
[1745715045230,1.08422,1844.1,1843.9,1.08427]
[1745715045419,1.589,1844.1,1844.0,1.08425]
[1745715046221,7.2598,1844.3,1844.2,1.08413]
[1745715046428,8.34387,1844.3,1844.1,1.08416]
[1745715046626,3.2078,1844.3,1844.2,1.08413]
[1745715046827,4.29191,1844.3,1844.1,1.08417]
[1745715047019,3.2078,1844.3,1844.2,1.08413]
[1745715047220,1.08413,1844.2,1844.1,1.08416]
[1745715047421,2.5979,1844.3,1844.1,1.08416]
[1745715047722,1.5769,1844.2,1844.1,1.08416]
[1745715048725,1.5138,1844.3,1844.2,1.08413]
[1745715050125,1.5138,1844.3,1844.2,2.71813]
[1745715050526,4.052,1844.5,1844.2,1.634]
[1745715050831,5.13596,1844.5,1844.3,1.08403]
[1745715051019,1.08401,1844.4,1844.1,1.08413]
[1745715051219,1.6108,1844.3,1844.1,1.634]
[1745715051422,1.08413,1844.2,1844.1,1.634]
[1745715051624,1.08413,1844.2,1844.0,4.18082]
[1745715051932,3.2078,1844.4,1844.3,1.08407]
[1745715054229,4.04738,1844.7,1844.5,1.08394]
[1745715054420,7.2598,1844.8,1844.3,5.91798]
[1745715054626,7.2598,1844.8,1844.4,1.6655]
[1745715054832,7.2598,1844.8,1844.7,1.08384]
[1745715055029,3.2078,1844.8,1844.7,1.08384]
[1745715055537,3.2078,1844.8,1844.6,1.6655]
[1745715055833,1.5978,1844.9,1844.7,1.08384]
[1745715056334,2.68155,1844.9,1844.6,2.74936]
[1745715056933,1.08384,1844.7,1844.6,1.6655]
[1745715057125,1.5978,1844.9,1844.6,1.6655]
[1745715057332,1.08381,1844.8,1844.6,1.6655]
[1745715057532,1.5978,1844.7,1844.6,1.6655]
[1745715057733,1.5978,1844.7,1844.6,2.74939]
[1745715058332,1.5978,1844.7,1844.6,1.08389]
[1745715058530,1.5978,1844.7,1844.6,2.68589]
[1745715061330,7.2568,1845.0,1844.6,1.602]
[1745715061639,1.6763,1845.0,1844.9,1.08372]
[1745715062340,3.2078,1845.3,1844.7,1.6793]
[1745715062529,3.2078,1845.3,1845.2,1.08354]
[1745715063438,4.048,1845.5,1845.2,1.6793]
[1745715063638,1.6763,1845.4,1845.2,2.7628]
[1745715063836,1.6763,1845.4,1845.3,1.08348]
[1745715064032,4.048,1845.5,1845.4,1.08342]
[1745715064334,4.048,1845.5,1845.2,1.6793]
[1745715064536,1.08345,1845.4,1845.2,2.76282]
[1745715064738,1.5632,1845.4,1845.2,2.76282]
[1745715065339,1.5632,1845.4,1845.3,1.08348]
[1745715067035,4.048,1845.5,1845.2,1.6793]
[1745715067237,4.048,1845.5,1845.4,1.08342]
[1745715067633,4.048,1845.5,1845.4,2.72102]
[1745715067831,5.13137,1845.5,1845.2,1.08351]
[1745715068032,5.13137,1845.5,1845.2,2.72111]
[1745715068033,1.585,1845.4,1845.2,2.72111]
[1745715068833,1.585,1845.4,1845.3,1.08348]
[1745715070140,4.048,1845.5,1845.4,1.08342]
[1745715071439,6.68531,1845.5,1845.3,1.5904]
[1745715071632,1.5539,1845.4,1845.3,2.67388]
[1745715072833,4.048,1845.5,1845.4,1.08342]
[1745715073035,2.985,1845.6,1845.4,2.69822]
[1745715073240,4.047,1846.0,1845.9,1.08312]
[1745715073540,17.51742707,1846.1,1846.0,1.08307]
[1745715073747,15.80702707,1846.1,1846.0,1.08307]
[1745715074339,12.59922707,1846.1,1846.0,1.08307]
[1745715074740,12.59922707,1846.1,1846.0,2.69787]
[1745715076046,12.59922707,1846.1,1846.0,3.96977]
[1745715076643,12.59922707,1846.1,1846.0,8.96977]
[1745715077734,1.6902,1846.4,1846.3,1.0829]
[1745715077938,7.2548,1846.6,1846.3,1.0829]
[1745715078239,8.945,1846.6,1846.4,2.78594]
[1745715079044,1.08278,1846.5,1846.2,1.08295]
[1745715079245,2.9227,1846.4,1846.3,1.0829]
[1745715081148,6.6447,1846.4,1846.1,3.94136]
[1745715081344,6.6447,1846.4,1846.3,1.0829]
[1745715081943,3.722,1846.4,1846.3,1.0829]
[1745715082144,9.93682,1846.6,1846.4,1.08282]
[1745715082449,8.8541,1846.6,1846.4,1.08282]
[1745715082647,9.93685,1846.6,1846.4,1.08282]
[1745715082949,8.8541,1846.6,1846.4,1.08282]
[1745715083138,13.65884,1846.6,1846.4,1.08282]
[1745715084044,17.5761,1846.6,1846.1,3.2078]
[1745715084248,3.2078,1846.4,1846.3,1.08288]
[1745715087443,3.2078,1846.4,1846.3,2.38208]
[1745715089152,6.5834,1846.9,1846.4,2.70704]
[1745715089153,2.5424,1846.9,1846.4,2.70704]
[1745715089345,3.62498,1846.9,1846.7,1.08264]
[1745715089548,2.67903,1846.8,1846.6,4.29048]
[1745715089848,1.5964,1846.7,1846.6,4.29048]
[1745715090043,1.5964,1846.7,1846.5,2.70345]
[1745715090044,2.67906,1846.7,1846.5,2.70345]
[1745715090554,1.5964,1846.6,1846.5,2.70345]